bitfinex-derivatives/quotes_ETHF0:USTF0_20250804
["timestamp","ask_amount","ask_price","bid_price","bid_amount"]
[1754320534377,2.5551,3650.7,3650.6,5.8659]
[1754320534574,2.5551,3650.7,3650.6,4.1379]
[1754320534779,2.5551,3650.7,3650.6,3.2078]
[1754320534979,2.5551,3650.7,3650.6,5.092]
[1754320535185,2.5551,3650.7,3650.6,5.4025]
[1754320536489,21.5991,3650.7,3650.6,5.4025]
[1754320537186,2.5551,3650.7,3650.6,3.2078]
[1754320537392,2.5551,3650.7,3650.3,0.4634]
[1754320537393,2.5551,3650.4,3650.3,2.6581]
[1754320537589,1.034,3650.2,3650.1,4.279]
[1754320537779,20.5391,3650.2,3650.1,5.317]
[1754320538092,21.5981,3650.2,3650.1,5.8659]
[1754320538388,0.2853,3650.0,3649.9,1.1235]
[1754320538596,21.5981,3650.0,3649.9,2.6581]
[1754320539084,0.3899,3649.8,3649.7,3.75571]
[1754320539293,21.5971,3649.8,3649.7,5.29031]
[1754320539586,19.042,3649.8,3649.7,5.29031]
[1754320539791,19.042,3649.8,3649.7,6.41381]
[1754320540392,19.7172,3649.8,3649.7,6.41381]
[1754320540688,19.042,3649.8,3649.7,6.41381]
[1754320540888,20.5344,3649.8,3649.7,5.8059]
[1754320541587,19.709,3649.8,3649.7,5.8059]
[1754320541889,19.042,3649.8,3649.7,5.8059]
[1754320542190,19.709,3649.8,3649.7,5.8059]
[1754320542390,20.1792,3649.8,3649.7,5.8059]
[1754320542692,19.042,3649.8,3649.7,5.8059]
[1754320543100,19.041,3650.1,3650.0,1.55397]
[1754320543386,19.041,3650.1,3650.0,2.5981]
[1754320544188,20.1782,3650.1,3650.0,2.5981]
[1754320544490,20.5334,3650.1,3650.0,2.5981]
[1754320544692,0.7174,3649.8,3649.7,4.2139]
[1754320544892,2.5083,3649.8,3649.7,5.3605]
[1754320545093,21.5483,3649.8,3649.7,5.8059]
[1754320545690,21.5483,3649.8,3649.7,3.2078]
[1754320545890,3.05624,3649.5,3649.3,3.2078]
[1754320546085,2.5083,3649.1,3649.0,0.90151]
[1754320546285,19.039,3649.1,3649.0,2.57401]
[1754320546485,18.039,3649.1,3649.0,2.57401]
[1754320546689,0.54802,3649.0,3648.9,3.2078]
[1754320546996,1.9624,3648.5,3648.4,5.20741]
[1754320547386,19.039,3648.7,3648.5,0.54809]
[1754320547597,19.039,3648.7,3648.6,2.1527]
[1754320547892,1.0222,3648.5,3648.0,1.1466]
[1754320548083,1.9624,3648.0,3647.9,1.99967]
[1754320548496,0.667,3648.2,3648.1,1.99964]
[1754320548696,21.0004,3648.2,3648.1,1.0061]
[1754320548884,2.0381,3648.0,3647.5,0.2741]
[1754320549092,1.0222,3647.6,3647.5,0.2741]
[1754320549392,20.0632,3647.6,3647.5,0.9867]
[1754320549694,21.0034,3647.6,3647.5,2.8722]
[1754320549883,21.5493,3647.6,3647.5,2.8722]
[1754320550497,21.5493,3647.6,3647.5,0.2741]
[1754320551492,20.6091,3647.6,3646.9,3.2078]
[1754320551699,2.5083,3647.0,3646.9,5.61533]
[1754320551899,21.5473,3647.0,3646.9,5.61533]
[1754320552195,21.5473,3647.0,3646.9,5.90883]
[1754320552394,20.5314,3647.0,3646.9,6.35423]
[1754320553089,21.0014,3647.0,3646.9,6.35423]
[1754320553486,20.5314,3647.0,3646.9,6.35423]
[1754320554093,19.039,3647.0,3646.9,6.35423]
[1754320554292,1.0222,3648.1,3648.0,0.90727]
[1754320554499,20.0632,3648.1,3648.0,2.05387]
[1754320554898,21.5493,3648.1,3648.0,2.05387]
[1754320555108,2.5083,3648.5,3648.4,2.40731]
[1754320555301,2.5083,3649.0,3648.9,1.5001]
[1754320555596,2.5083,3648.9,3648.8,0.54804]
[1754320556098,2.5083,3648.9,3648.3,0.5745]
[1754320556296,1.0222,3648.7,3648.5,0.54808]
[1754320556601,1.9624,3648.4,3648.3,3.14622]
[1754320557596,1.1372,3648.4,3648.3,3.14622]
[1754320557897,2.5083,3648.4,3648.3,3.14622]
[1754320559399,1.9624,3648.4,3648.3,3.14622]
[1754320559800,2.5083,3648.4,3648.3,1.26072]
[1754320560295,2.5083,3648.4,3648.3,2.40732]
[1754320560501,1.9624,3648.4,3648.3,3.14622]
[1754320561704,2.5083,3648.4,3648.3,2.5981]
[1754320563197,2.5083,3648.4,3648.3,1.8592]
[1754320563395,1.7909,3648.3,3648.2,3.2078]
[1754320563596,2.5083,3647.9,3647.8,3.2078]
[1754320563802,2.5083,3647.5,3647.4,3.2078]
[1754320564003,21.5463,3647.5,3647.4,5.3605]
[1754320564315,21.0004,3647.5,3647.4,5.8059]
[1754320565003,20.5304,3647.5,3647.4,5.8059]
[1754320565994,19.705,3647.5,3647.4,5.8059]
[1754320566199,0.4702,3648.4,3648.2,0.4454]
[1754320566502,19.704,3648.3,3648.2,2.5981]
[1754320566701,21.5354,3648.3,3648.2,2.1527]
[1754320566902,21.5354,3648.3,3648.2,1.8592]
[1754320567101,19.037,3648.3,3647.9,4.7998]
[1754320567299,2.4984,3648.0,3647.9,3.2078]
[1754320567604,0.54826,3647.4,3647.3,0.5721]
[1754320567801,1.4924,3647.3,3647.2,4.2139]
[1754320568002,20.05447,3647.4,3647.2,4.2139]
[1754320568198,1.4924,3647.3,3647.2,4.2139]
[1754320568507,2.4984,3647.3,3647.2,5.3605]
[1754320568702,2.4984,3647.3,3647.2,0.3591]
[1754320568904,1.01854,3646.9,3646.7,3.2078]
[1754320569104,20.1742,3646.8,3646.7,5.8059]
[1754320569301,21.5354,3646.8,3646.7,5.8059]
[1754320569610,21.5354,3646.8,3646.7,5.067]
[1754320569805,21.5354,3646.8,3646.7,5.8059]
[1754320570111,19.037,3646.8,3646.7,5.8059]
[1754320570311,20.6556,3646.8,3646.7,3.2078]
[1754320570612,1.8946,3646.3,3646.2,5.8313]
[1754320570801,1.37078,3647.1,3646.3,1.1268]
[1754320570802,19.038,3646.5,3646.3,1.1268]
[1754320571113,19.038,3646.5,3646.4,2.6235]
[1754320572510,0.54832,3647.0,3646.9,2.6235]
[1754320572814,19.58532,3647.0,3646.9,2.6235]
[1754320573111,0.54828,3647.3,3647.2,2.6235]
[1754320573310,0.54828,3647.3,3647.2,5.8313]
[1754320573502,22.00928,3647.3,3647.2,2.6235]
[1754320573899,22.00928,3647.3,3647.2,2.176]
[1754320574305,22.00928,3647.3,3647.2,2.6235]
[1754320575908,19.038,3648.1,3648.0,2.6235]
[1754320576107,19.71907443,3648.1,3648.0,5.8313]
[1754320576419,20.1272,3648.1,3648.0,2.6235]
[1754320576706,21.458,3648.1,3648.0,2.176]
[1754320576913,2.42,3647.8,3647.7,2.176]
[1754320577101,21.458,3647.8,3647.7,2.176]
[1754320577413,21.458,3647.8,3647.7,2.6235]
[1754320579113,19.4681,3647.8,3647.4,5.8313]
[1754320579415,0.6591,3647.5,3647.4,4.8253]
[1754320579612,20.4738,3647.5,3647.4,4.8253]
[1754320579813,21.456,3647.5,3647.4,5.3838]
[1754320580116,19.036,3647.5,3647.4,2.6235]
[1754320580420,19.036,3647.5,3647.4,5.8313]
[1754320582116,21.02204,3647.5,3647.4,3.9651]
[1754320582315,22.00424,3647.5,3647.4,3.9651]
[1754320582514,21.02204,3647.5,3647.4,5.8313]
[1754320582710,19.036,3647.5,3647.4,5.8313]
[1754320584208,1.4378,3648.0,3647.9,2.6235]
[1754320584410,0.54817,3648.0,3647.9,2.6235]
[1754320584716,19.58117,3648.0,3647.9,2.6235]
[1754320584917,19.033,3648.0,3647.9,2.6235]
[1754320585121,19.033,3648.0,3647.9,0.9436]
[1754320585416,1.55594,3647.5,3647.4,4.4126]
[1754320585617,2.96824,3647.5,3647.4,5.8313]
[1754320586015,2.96824,3647.5,3647.4,2.176]
[1754320586211,2.43889,3647.2,3647.1,2.6235]
[1754320586416,2.96829,3647.2,3647.1,2.6235]
[1754320586820,2.42,3647.2,3647.1,2.6235]
[1754320587218,1.4378,3647.2,3647.1,0.7573]
[1754320587420,1.0892,3647.2,3647.1,2.6235]
[1754320587722,1.4378,3647.2,3647.1,2.6235]
[1754320588116,1.0892,3647.2,3647.1,2.6235]
[1754320588418,0.6591,3647.2,3647.1,2.6235]
[1754320589011,1.0892,3647.2,3647.1,2.6235]
[1754320589218,2.42,3647.2,3647.1,2.6235]
[1754320589620,2.42,3647.2,3647.1,2.176]
[1754320589819,19.58028,3647.3,3647.1,2.6235]
[1754320589820,19.032,3647.3,3647.1,2.6235]
[1754320590021,19.6911,3647.3,3647.2,2.6235]
[1754320590520,20.4698,3647.3,3647.2,2.6235]
[1754320590717,20.9226,3647.3,3647.2,2.6235]
[1754320591224,21.452,3647.3,3647.2,2.6235]
[1754320591413,1.0077,3647.1,3646.6,3.2078]
[1754320591624,2.96836,3646.7,3646.6,3.2078]
[1754320591817,21.99836,3646.7,3646.6,5.0919]
[1754320592125,21.99836,3646.7,3646.6,5.3838]
[1754320592817,21.99836,3646.7,3645.9,0.98739697]
[1754320592818,0.54844,3646.3,3646.2,1.6175]
[1754320593024,2.08554,3646.3,3646.2,2.176]
[1754320593724,21.45,3646.3,3646.2,2.176]
[1754320593920,21.11553,3646.3,3646.1,3.2078]
[1754320594129,2.42,3646.2,3646.1,5.3838]
[1754320594517,2.42,3646.2,3646.1,5.8313]
[1754320595826,2.42,3646.2,3646.1,3.2078]
[1754320596019,2.42,3646.2,3646.1,5.8313]
[1754320596623,2.42,3646.2,3646.1,3.2078]
[1754320596927,2.42,3646.2,3646.1,4.8155]
[1754320597123,1.0892,3646.2,3646.1,5.8313]
[1754320597421,0.54845,3646.1,3645.9,0.98739697]
[1754320597627,21.45,3646.0,3645.9,0.98739697]
[1754320599930,22.1340143,3646.0,3645.9,0.98739697]
[1754320600133,3.1040143,3646.0,3645.9,0.98739697]
[1754320600331,22.1370143,3646.0,3645.9,0.98739697]
[1754320600533,0.715,3645.3,3645.2,3.2078]
[1754320600834,1.0804,3645.0,3644.9,1.7976]
[1754320601031,20.1124,3645.0,3644.9,1.7976]
[1754320601933,19.032,3645.0,3644.9,2.5571]
[1754320602430,3.2078,3645.8,3645.7,0.448]
[1754320602626,1.0804,3646.1,3646.0,0.722]
[1754320602934,19.032,3646.1,3646.0,2.5571]
[1754320603231,19.032,3646.1,3645.9,3.75627]
[1754320603232,0.2852,3646.2,3646.1,3.10555]
[1754320603435,19.3162,3646.2,3646.1,3.10555]
[1754320603632,19.746,3646.2,3646.1,3.10555]
[1754320603827,19.746,3646.2,3646.1,2.5571]
[1754320604335,20.1114,3646.2,3646.1,2.5571]
[1754320605835,20.1114,3646.2,3646.1,2.1091]
[1754320606331,0.54848,3645.9,3645.7,0.5468]
[1754320606532,1.80096,3646.1,3645.1,0.722]
[1754320606533,1.19919,3645.2,3645.1,0.722]
[1754320606831,20.23119,3645.2,3645.1,1.2508]
[1754320607024,20.23119,3645.2,3645.1,0.3545]
[1754320607231,20.66099,3645.2,3645.1,1.7976]
[1754320607427,19.032,3645.2,3645.1,2.1091]
[1754320607729,19.032,3645.2,3645.1,3.10569]
[1754320607932,19.747,3645.2,3645.1,2.5571]
[1754320608130,0.2852,3645.1,3644.8,0.5468]
[1754320608325,1.62903,3644.9,3644.8,0.5468]
[1754320608526,20.1124,3644.9,3644.5,3.2078]
[1754320608726,20.1124,3644.9,3644.5,5.7649]
[1754320608727,1.62908,3644.6,3644.5,5.7649]
[1754320608931,20.66008,3644.6,3644.5,5.7649]
[1754320609126,20.1114,3644.6,3644.5,5.7649]
[1754320609334,0.4298,3645.0,3644.5,5.7649]
[1754320609534,20.29464,3644.9,3644.8,1.0335]
[1754320609732,20.29464,3644.9,3644.8,2.5571]
[1754320609933,20.66004,3644.9,3644.8,2.1091]
[1754320610138,20.66004,3644.9,3644.8,1.0756]
[1754320610438,20.66004,3644.9,3644.8,0.5468]
[1754320611741,20.66004,3644.9,3644.8,1.7976]
[1754320612237,1.37137,3645.5,3645.4,0.3115]
[1754320612238,0.83374,3645.5,3645.4,0.3115]
[1754320612439,19.032,3645.5,3645.4,5.7649]
[1754320613037,19.032,3645.5,3645.4,4.7314]
[1754320613250,39.492,3645.6,3645.5,2.07214]
[1754320613538,59.07353,3645.6,3645.5,1.5236]
[1754320613939,59.50333,3645.6,3645.5,0.5468]
[1754320614336,59.74943,3645.6,3645.5,0.5468]
[1754320614742,59.50333,3645.6,3645.5,0.5468]
[1754320615039,58.9548,3645.6,3645.5,1.5236]
[1754320615241,39.492,3645.6,3645.5,1.5236]
[1754320615541,58.9538,3645.6,3645.5,1.5236]
[1754320616435,40.04053,3645.6,3645.5,0.5288]
[1754320616730,59.50233,3645.6,3645.5,0.5468]
[1754320616930,59.50233,3645.6,3645.5,1.0756]
[1754320616931,39.492,3645.6,3645.5,1.0756]
[1754320617139,58.524,3645.6,3645.5,1.5236]
[1754320617639,58.9538,3645.6,3645.5,1.5236]
[1754320618450,58.9538,3645.6,3645.5,2.5571]
[1754320618742,58.524,3645.6,3645.5,2.5571]
[1754320619148,58.9538,3645.6,3645.5,2.5571]
[1754320619337,39.9218,3645.6,3645.5,2.5571]
[1754320619640,58.9528,3645.6,3645.5,2.5571]
[1754320621043,1.0804,3645.5,3645.4,4.4586]
[1754320621241,1.0804,3645.5,3645.4,3.5623]
[1754320621744,20.1104,3645.5,3645.4,5.7649]
[1754320622241,1.0804,3645.5,3645.4,5.7649]
[1754320622439,19.03,3645.5,3645.4,5.7649]
[1754320622746,20.3565,3645.5,3645.4,3.2078]
[1754320623037,20.3565,3645.5,3645.4,5.7649]
[1754320623038,20.1104,3645.5,3645.4,5.7649]
[1754320623540,0.2852,3645.5,3645.4,5.7649]
[1754320623840,19.029,3645.5,3645.4,5.7649]
[1754320624147,39.492,3645.6,3645.5,2.5571]
[1754320624339,58.9508,3645.6,3645.5,2.5571]
[1754320624538,39.9218,3645.6,3645.5,2.5571]
[1754320624739,58.9508,3645.6,3645.5,2.5571]
[1754320626442,58.9508,3645.6,3645.5,1.0756]
[1754320626641,39.9218,3645.6,3645.5,1.0756]
[1754320626843,58.9508,3645.6,3645.5,0.5468]
[1754320627040,1.62894,3645.5,3645.4,3.7546]
[1754320627442,20.65694,3645.5,3645.4,5.3169]
[1754320627940,40.04053,3645.6,3645.5,2.5571]
[1754320628144,59.49833,3645.6,3645.5,2.5571]
[1754320628544,58.9498,3645.6,3645.5,2.5571]
[1754320629243,58.9498,3645.6,3645.5,2.1091]
[1754320630247,59.1831,3645.6,3645.5,0.5468]
[1754320630443,1.43334,3645.5,3645.4,3.7354]
[1754320630645,1.88404,3645.5,3645.4,3.7354]
[1754320631043,1.65074,3645.5,3645.4,5.0124]
[1754320631249,39.492,3645.6,3645.4,6.31495]
[1754320631548,19.6785,3645.5,3645.4,5.0124]
[1754320631747,20.1292,3645.5,3645.4,5.0124]
[1754320631948,20.1292,3645.5,3645.4,5.3166]
[1754320632249,20.1292,3645.5,3645.4,5.7664]
[1754320633350,39.492,3645.6,3645.5,3.10714]
[1754320633541,58.518,3645.6,3645.5,2.5586]
[1754320634149,39.9427,3645.6,3645.5,2.5586]
[1754320634451,58.9687,3645.6,3645.5,2.5586]
[1754320634645,39.9427,3645.6,3645.5,2.5586]
[1754320634845,58.9677,3645.6,3645.5,2.5586]
[1754320635746,39.9427,3645.6,3645.5,2.5586]
[1754320635946,58.9677,3645.6,3645.5,2.5586]
[1754320636541,1.1022,3645.6,3645.5,2.5586]
[1754320636750,20.1272,3645.6,3645.5,2.5586]
[1754320637354,20.1272,3645.6,3645.5,2.1088]
[1754320637737,0.2879,3645.6,3645.5,2.5586]
[1754320637941,0.5485,3645.8,3645.7,2.5586]
[1754320638148,0.124481,3646.0,3645.9,2.031]
[1754320638342,1.91563057,3646.7,3645.9,2.031]
[1754320638343,0.54838,3646.6,3646.4,2.0179]
[1754320638548,1.06222151,3646.8,3646.7,2.5586]
[1754320638741,0.8180084,3647.1,3647.0,3.10692]
[1754320638943,19.023,3647.1,3647.0,3.10692]
[1754320639851,19.023,3647.1,3647.0,2.5586]
[1754320640050,19.3109,3647.1,3647.0,2.5586]
[1754320640253,19.7616,3647.1,3647.0,2.5586]
[1754320641551,20.1252,3647.1,3647.0,2.5586]
[1754320650659,19.023,3647.1,3647.0,2.5586]
[1754320651454,1.19278,3647.9,3647.8,1.0405]
[1754320651660,20.65648,3647.9,3647.8,2.5586]
[1754320652154,20.1083,3647.9,3647.8,2.5586]
[1754320652554,20.1083,3647.9,3647.8,2.1088]
[1754320652555,1.0953,3647.9,3647.8,2.1088]
[1754320652758,20.1073,3647.9,3647.8,1.8046]
[1754320652957,20.3302,3647.9,3647.8,1.8046]
[1754320653154,0.5105,3647.8,3647.5,3.01042]
[1754320653460,2.514,3647.6,3647.5,4.05092]
[1754320653754,40.04514,3648.2,3648.0,0.54816]
[1754320653957,21.524,3648.1,3648.0,1.58866]
[1754320654159,21.524,3648.1,3648.0,1.0405]
[1754320654160,21.0135,3648.1,3648.0,1.0405]
[1754320654360,21.524,3648.1,3648.0,1.58866]
[1754320654660,19.01,3648.1,3648.0,2.03846]
[1754320655259,19.01,3648.1,3648.0,3.10676]
[1754320655458,19.3736,3648.1,3648.0,3.10676]
[1754320655653,21.524,3648.1,3648.0,3.10676]
[1754320656764,21.524,3648.1,3648.0,2.5586]
[1754320656959,20.0286,3648.1,3648.0,2.5586]
[1754320657366,19.3736,3648.1,3648.0,2.5586]
[1754320658066,19.01,3648.1,3648.0,2.5586]
[1754320658270,0.54814,3648.2,3648.1,3.10675]
[1754320658565,19.3696,3648.2,3648.1,3.10675]
[1754320658961,19.3696,3648.2,3648.1,2.5586]
[1754320659668,21.0095,3648.2,3648.1,2.5586]
[1754320659966,21.52,3648.2,3648.1,2.5586]
[1754320661466,0.54815,3648.1,3647.9,3.7681]
[1754320661767,0.54815,3648.1,3647.9,4.7681]
[1754320661768,21.5372,3648.0,3647.9,4.7681]
[1754320662664,21.5372,3648.0,3647.4,1.37061]
[1754320662665,1.0137,3647.6,3647.5,1.3687]
[1754320662866,1.0137,3647.5,3647.4,3.2078]
[1754320663171,2.5342,3647.5,3647.4,4.2078]
[1754320663857,2.5342,3647.5,3647.4,0.6916]
[1754320664061,0.91742,3647.0,3646.9,0.3498]
[1754320664361,1.0137,3646.9,3646.8,2.0189]
[1754320664672,2.1077,3646.9,3646.8,2.5792]
[1754320664861,2.5342,3646.9,3646.8,2.5792]
[1754320665058,0.6446,3646.8,3646.7,1.5792]
[1754320665262,20.0147,3646.8,3646.7,2.5792]
[1754320665662,1.9827,3646.8,3646.7,1.5603]
[1754320665871,21.5342,3646.8,3646.7,0.6916]
[1754320666372,21.5342,3646.8,3646.7,0.3498]
[1754320667070,0.54842,3646.3,3646.2,3.2078]
[1754320667267,1.56215,3646.1,3646.0,1.5603]
[1754320667464,22.08265,3646.1,3646.0,1.5603]
[1754320667769,21.5342,3646.1,3646.0,1.5603]
[1754320667969,21.5342,3646.1,3646.0,2.5792]
[1754320668169,20.9827,3646.1,3646.0,2.5792]
[1754320669474,20.0137,3646.1,3646.0,2.5792]
[1754320670474,19.001,3646.1,3646.0,2.5792]
[1754320671470,0.54847,3646.0,3645.8,3.2078]
[1754320671671,21.5342,3645.9,3645.8,3.2078]
[1754320673377,20.9827,3645.9,3645.8,5.787]
[1754320673571,21.5342,3645.9,3645.8,5.787]
[1754320674177,4.57881,3646.5,3645.8,5.787]
[1754320674178,0.6583,3646.3,3646.2,1.0]
[1754320674375,20.5662,3646.3,3646.2,2.5792]
[1754320674570,20.5662,3646.3,3646.2,1.5603]
[1754320674772,21.5352,3646.3,3646.2,1.5603]
[1754320675178,21.5352,3646.3,3646.2,1.0]
[1754320675471,19.6593,3646.3,3646.2,1.0]
[1754320675673,20.9837,3646.3,3646.2,2.5792]
[1754320676065,20.9837,3646.3,3646.2,1.0]
[1754320676066,21.5352,3646.3,3646.2,1.0]
[1754320676269,21.5352,3646.3,3645.9,2.12767]
[1754320676270,1.0137,3646.0,3645.9,3.12767]
[1754320676478,21.5352,3646.0,3645.9,3.12767]
[1754320676666,20.9837,3646.0,3645.9,3.12767]
[1754320676871,20.0147,3646.0,3645.9,3.12767]
[1754320677072,20.9837,3646.0,3645.9,2.5792]
[1754320677276,1.5205,3645.9,3645.8,3.2078]
[1754320677575,2.5342,3645.9,3645.8,5.787]
[1754320678574,19.001,3646.0,3645.8,6.33548]
[1754320678879,21.5352,3646.0,3645.9,2.5792]
[1754320679174,21.5352,3646.0,3645.9,1.5603]
[1754320679577,2.5342,3645.9,3645.8,4.2078]
[1754320679880,1.9827,3645.9,3645.8,5.787]
[1754320680476,19.001,3646.0,3645.9,1.54848]
[1754320680678,19.6593,3646.0,3645.9,1.0]
[1754320680878,20.9837,3646.0,3645.9,2.5792]
[1754320681280,21.5352,3646.0,3645.9,2.5792]
[1754320682281,21.5352,3646.0,3645.9,1.5603]
[1754320682480,0.54848,3645.9,3645.8,3.2078]
[1754320682682,3.08268,3645.9,3645.8,3.2078]
[1754320682879,3.08268,3645.9,3645.8,3.5576]
[1754320683283,3.08268,3645.9,3645.8,4.2078]
[1754320683681,2.5342,3645.9,3645.8,4.2078]
[1754320683982,2.5342,3645.9,3645.8,4.7681]
[1754320684188,2.5342,3645.9,3645.8,5.2396]
[1754320684379,2.5342,3645.9,3645.8,3.866]
[1754320684579,2.5342,3645.9,3645.8,3.2078]
[1754320685281,21.5322,3645.9,3645.8,3.2078]
[1754320686087,21.5322,3645.9,3645.8,4.2078]
[1754320686278,21.5322,3645.9,3645.8,5.787]
[1754320688279,19.7137,3645.9,3645.8,5.787]
[1754320688484,3.9235,3646.5,3646.4,1.4715]
[1754320688682,21.5312,3646.5,3646.4,2.5792]
[1754320689184,20.9787,3646.5,3646.4,2.5792]
[1754320689483,20.0097,3646.5,3646.4,2.5792]
[1754320689686,21.5302,3646.5,3646.4,2.5792]
[1754320690884,20.9787,3646.5,3646.4,2.5792]
[1754320691186,3.08745,3646.8,3646.7,2.5197]
[1754320691484,19.3357,3646.8,3646.7,2.5197]
[1754320691690,21.5341,3646.8,3646.7,1.5448]
[1754320691895,21.5341,3646.8,3646.7,1.0369]
[1754320692188,21.5341,3646.8,3646.7,1.5448]
[1754320692388,21.5341,3646.8,3646.7,2.5197]
[1754320692587,21.5341,3646.8,3646.7,5.7275]
[1754320692789,19.3357,3646.8,3646.7,5.7275]
[1754320693381,0.3407,3647.1,3647.0,2.5197]
[1754320693583,2.5391,3647.5,3647.4,1.9772]
[1754320693892,20.83104703,3647.5,3647.4,2.5197]
[1754320694086,21.25228316,3647.5,3647.4,2.5197]
[1754320694285,22.77358316,3647.5,3647.4,2.5197]
[1754320694490,22.08034,3647.5,3647.4,2.5197]
[1754320694789,20.0108,3647.5,3647.4,2.5197]
[1754320695291,21.0062,3647.5,3647.4,2.5197]
[1754320695493,21.5321,3647.5,3647.4,2.5197]
[1754320695694,1.5437,3647.3,3647.1,3.2078]
[1754320695989,3.08743,3646.9,3646.8,0.6701]
[1754320696191,22.07943,3646.9,3646.8,0.6701]
[1754320696390,22.07943,3646.9,3646.8,2.5197]
[1754320696583,22.07943,3646.9,3646.8,2.0118]
[1754320696890,22.07943,3646.9,3646.8,1.0369]
[1754320697089,22.07943,3646.9,3646.8,0.6701]
[1754320697291,1.56616,3646.7,3646.6,3.2078]
[1754320697590,22.07646,3646.7,3646.6,4.2447]
[1754320697793,22.07646,3646.7,3646.6,5.185]
[1754320697989,22.07646,3646.7,3646.6,5.7275]
[1754320698186,22.07646,3646.7,3646.6,4.1149]
[1754320698391,22.07646,3646.7,3646.4,0.5484]
[1754320698392,3.08753,3646.3,3646.2,3.2078]
[1754320698694,22.07553,3646.3,3646.2,3.2078]
[1754320699086,22.07553,3646.3,3646.2,3.5724]
[1754320699392,21.5271,3646.3,3646.2,5.7275]
[1754320700787,20.4645,3646.3,3646.2,5.7275]
[1754320700982,20.0058,3646.3,3646.2,5.7275]
[1754320701894,18.988,3646.3,3646.2,5.7275]
[1754320703685,0.88911,3646.4,3646.2,4.6906]
[1754320703889,20.55221,3646.4,3646.2,3.2078]
[1754320704497,2.5391,3646.3,3646.2,3.2078]
[1754320704695,2.5391,3646.3,3646.2,4.2447]
[1754320704891,2.5391,3646.3,3646.2,5.7275]
[1754320705903,2.5391,3646.3,3646.2,2.5197]
[1754320706293,2.5391,3646.3,3646.2,1.0369]
[1754320706699,2.0132,3646.0,3645.9,3.06817]
[1754320707002,2.5391,3645.9,3645.8,3.2078]
[1754320707301,2.5391,3645.9,3645.8,5.2951]
[1754320707494,2.5391,3645.9,3645.8,5.7275]
[1754320708094,19.2955,3646.0,3645.9,1.0369]
[1754320708300,21.5241,3646.0,3645.9,2.5197]
[1754320708602,19.6362,3646.0,3645.9,2.5197]
[1754320709195,19.3257,3646.0,3645.9,2.5197]
[1754320709607,19.6362,3646.0,3645.9,2.5197]
[1754320709808,20.0028,3646.0,3645.9,2.5197]
[1754320710103,21.5241,3646.0,3645.9,2.5197]
[1754320710299,3.08758,3645.9,3645.8,4.7526]
[1754320710498,19.53347,3646.0,3645.9,0.54848]
[1754320710708,19.3257,3646.0,3645.9,3.06818]
[1754320711001,21.5241,3646.0,3645.9,3.06818]
[1754320711608,21.5241,3646.0,3645.9,1.5448]
[1754320711809,21.5241,3646.0,3645.9,0.3646]
[1754320712110,21.5241,3646.0,3645.9,2.5197]
[1754320713404,1.5437,3646.3,3646.2,0.54842]
[1754320713706,0.6512,3646.5,3646.4,2.5197]
[1754320713899,19.6342,3646.5,3646.4,2.5197]
[1754320714308,18.983,3646.5,3646.4,2.5197]
[1754320714610,20.0008,3646.5,3646.4,2.5197]
[1754320714809,18.983,3646.5,3646.4,2.5197]
[1754320715612,0.3407,3646.8,3646.7,1.58526]
[1754320715804,19.53031,3647.1,3646.9,1.58523]
[1754320716114,19.3227,3647.1,3647.0,2.5197]
[1754320716312,21.12136356,3647.1,3647.0,2.5197]
[1754320716613,21.64726356,3647.1,3647.0,2.5197]
[1754320717316,21.5211,3647.1,3647.0,2.5197]
[1754320720411,2.4718,3646.9,3646.8,3.00513]
[1754320721010,0.54834,3646.8,3646.7,3.2078]
[1754320721217,2.4718,3646.3,3646.2,5.6646]
[1754320721409,2.4718,3646.3,3646.2,3.2078]
[1754320721609,3.02028,3645.9,3645.8,5.71859]
[1754320721809,2.4718,3645.9,3645.8,5.71859]
[1754320722104,2.4718,3645.9,3645.8,5.6646]
[1754320722305,21.4478,3645.9,3645.8,3.2078]
[1754320723208,2.4718,3645.4,3645.3,6.21316]
[1754320723615,1.9485,3645.4,3645.3,6.21316]
[1754320723814,2.4718,3645.4,3645.3,5.6646]
[1754320729417,2.4718,3645.4,3645.3,3.2078]
[1754320731224,2.4718,3645.4,3645.3,4.192]
[1754320731526,2.4718,3645.4,3645.3,4.6865]
[1754320732224,2.4718,3645.4,3645.3,4.192]
[1754320733223,2.4718,3645.4,3645.3,3.2078]
[1754320734025,21.4458,3645.4,3645.3,3.2078]
[1754320734220,0.9696,3644.8,3644.5,0.4945]
[1754320734427,21.4458,3644.7,3644.6,5.6646]
[1754320735719,20.9225,3644.7,3644.6,5.6646]
[1754320735920,18.974,3644.7,3644.6,5.6646]
[1754320736223,20.9225,3644.7,3644.6,5.6646]
[1754320736522,20.4669,3644.7,3644.6,5.6646]
[1754320736826,21.4458,3644.7,3644.6,5.6646]
[1754320738725,20.9225,3644.7,3644.6,5.6646]
[1754320740716,21.4458,3644.7,3644.6,5.6646]
[1754320741520,21.4458,3644.7,3644.6,5.1701]
[1754320741718,1.51832,3644.3,3644.2,5.219]
[1754320741918,1.51838,3643.9,3643.8,5.27329]
[1754320742127,3.02058,3643.9,3643.8,5.27329]